[Event "FIDE WCCC Open-08 2024"]
[Site "Montesilvano"]
[Date "2024.11.25"]
[Round "10.51"]
[White "Ramirez Mejia, Jose Gregorio"]
[Black "Hakobyan, Sos"]
[Result "1/2-1/2"]
[Annotator "NA RC"]
[ECO "C55"]
[WhiteElo "1489"]
[BlackElo "1806"]
[PlyCount "32"]
[EventDate "2024.11.18"]
[EventType "swiss"]
[EventCountry "ITA"]
[SourceTitle "playchess.com"]
[Source "ChessBase"]
[SourceQuality "1"]
[TimeControl "5400+30"]

1. e4 {[%emt 1:31:00]} e5 {[%emt 0:00:10]} 2. Nf3 {[%emt 0:00:00]} Nc6 {[%emt 0:01:02]} 3. Bc4 {[%emt 0:00:00]} Nf6 {[%emt 0:01:47]} 4. d3 {[%emt 0:00:00]} h6 {[%emt 0:02:21]} 5. O-O {[%emt 0:00:00]} d6 {[%emt 0:01:43]} 6. h3 {[%emt 0:00:00]} Be7 {[%emt 0:01:22]} 7. Be3 {[%emt 0:00:00]} O-O {[%emt 0:05:48]} 8. Nc3 {[%emt 0:00:00]} Be6 {[%emt 0:07:24]} 9. Nd5 {[%emt 0:00:00]} Bxd5 {[%emt 0:05:54]} 10. exd5 {[%emt 0:00:00]} Nb4 {[%emt 0:03:27]} 11. Qd2 {[%emt 0:00:00]} Nbxd5 {[%emt 0:02:32]} 12. d4 {[%emt 0:00:00]} Nxe3 {[%emt 0:01:44]} 13. Qxe3 {[%emt 0:00:00]} e4 {[%emt 0:01:03]} 14. Nd2 {[%emt 0:00:00]} d5 {[%emt 0:02:59]} 15. Bb3 {[%emt 0:00:00]} Re8 {[%emt 0:03:24]} 16. c4 {[%emt 0:00:00]} c6 {[%emt 0:01:15]} 1/2-1/2